bitfinex/quotes_SOLUSD_20250928
["timestamp","ask_amount","ask_price","bid_price","bid_amount"]
[1759080086971,42.95588183,205.25,205.24,0.2]
[1759080087154,80.27588183,205.25,205.24,0.2]
[1759080087354,80.97588183,205.25,205.24,0.2]
[1759080089967,85.84798901,205.25,205.24,0.2]
[1759080090169,26.0,205.21,205.18,0.2]
[1759080090360,2.66028782,205.19,205.18,0.2]
[1759080090766,41.38028782,205.19,205.18,0.2]
[1759080091488,132.8,205.2,205.18,0.92]
[1759080091792,2.66028782,205.19,205.18,0.92]
[1759080091957,40.68028782,205.19,205.18,0.92]
[1759080092276,40.68028782,205.19,205.18,0.2]
[1759080092851,2.66028782,205.19,205.18,0.92]
[1759080093100,40.68028782,205.19,205.18,0.92]
[1759080093282,2.66028782,205.19,205.18,0.92]
[1759080093453,40.68028782,205.19,205.18,0.2]
[1759080094464,2.66028782,205.19,205.18,0.2]
[1759080094977,44.65270645,205.19,205.18,0.2]
[1759080095282,20.22830046,205.19,205.18,0.2]
[1759080095483,58.24830046,205.19,205.18,0.2]
[1759080095665,20.22830046,205.19,205.18,0.2]
[1759080095969,58.24830046,205.19,205.18,0.2]
[1759080096374,20.22830046,205.19,205.18,0.2]
[1759080096571,58.24830046,205.19,205.18,0.2]
[1759080098164,39.59559401,205.15,205.11,0.72]
[1759080098361,28.66028782,205.12,205.11,0.72]
[1759080098663,28.66028782,205.12,205.07,0.2]
[1759080098864,40.68028782,205.11,205.07,0.2]
[1759080099074,2.66028782,205.1,205.07,0.2]
[1759080099367,2.66028782,205.1,205.08,0.72]
[1759080099678,38.02,205.09,205.08,0.72]
[1759080099858,2.66028782,205.1,205.08,0.72]
[1759080100057,38.02,205.09,205.08,0.72]
[1759080100261,2.66028782,205.1,205.08,0.72]
[1759080100621,40.68028782,205.09,205.07,0.2]
[1759080100888,38.02,205.08,205.07,0.2]
[1759080101061,2.66028782,205.09,205.07,0.2]
[1759080101458,38.02,205.08,205.07,0.2]
[1759080101684,26.0,205.12,205.07,0.2]
[1759080101860,38.02,205.11,205.07,0.2]
[1759080102060,38.02,205.11,205.08,0.72]
[1759080102061,38.02,205.1,205.08,0.72]
[1759080102382,26.0,205.11,205.08,0.72]
[1759080102585,2.66028782,205.1,205.08,0.72]
[1759080102786,40.68028782,205.1,205.08,0.72]
[1759080103285,38.02,205.09,205.08,0.72]
[1759080103472,2.66028782,205.1,205.08,0.72]
[1759080103785,38.02,205.09,205.08,0.72]
[1759080103987,40.43571741,205.12,205.07,0.2]
[1759080104162,43.09600523,205.12,205.09,0.72]
[1759080104373,43.09600523,205.12,205.07,0.2]
[1759080104581,26.0,205.09,205.08,0.72]
[1759080104881,64.02,205.09,205.07,0.2]
[1759080105082,38.02,205.08,205.07,0.2]
[1759080105596,26.0,205.08,205.07,0.2]
[1759080105777,64.02,205.08,205.07,0.2]
[1759080106190,26.0,205.08,205.07,0.2]
[1759080106497,64.02,205.08,205.07,0.2]
[1759080106793,26.0,205.08,205.07,0.2]
[1759080107297,64.02,205.08,205.07,0.2]
[1759080107594,26.0,205.08,205.07,0.2]
[1759080107778,64.02,205.08,205.07,0.2]
[1759080107979,26.0,205.08,205.07,0.2]
[1759080108179,64.02,205.08,205.07,0.2]
[1759080108592,2.40873013,205.1,205.07,0.2]
[1759080108789,134.50873013,205.11,205.08,0.72]
[1759080108986,38.02,205.1,205.08,0.72]
[1759080109486,38.02,205.1,205.07,0.2]
[1759080109694,38.72,205.1,205.07,0.2]
[1759080109896,38.02,205.09,205.07,0.2]
[1759080111397,38.02,205.09,205.07,0.91]
[1759080111906,26.0,205.08,205.07,0.91]
[1759080112097,64.02,205.08,205.07,0.91]
[1759080112604,66.38873013,205.08,205.07,0.2]
[1759080113212,65.72873013,205.08,205.07,0.2]
[1759080113900,64.02,205.08,205.07,0.2]
[1759080118189,26.0,205.08,205.07,0.2]
[1759080118415,64.02,205.08,205.07,0.2]
[1759080120509,26.0,205.08,205.07,0.91]
[1759080121009,64.02,205.08,205.07,0.91]
[1759080121489,26.0,205.09,205.07,0.2]
[1759080121684,39.70873013,205.08,205.07,0.2]
[1759080121888,40.36873013,205.08,205.07,0.2]
[1759080122109,2.36873013,205.08,205.07,0.2]
[1759080122416,40.36873013,205.08,205.07,0.2]
[1759080123306,28.36873013,205.08,205.07,0.2]
[1759080123493,66.36873013,205.08,205.07,0.2]
[1759080124894,68.92037926,205.08,205.07,0.2]
[1759080125789,3.21164913,205.08,205.07,0.2]
[1759080125988,4.26037926,205.08,205.07,0.2]
[1759080126216,42.92037926,205.08,205.07,0.2]
[1759080126717,42.28037926,205.08,205.07,0.2]
[1759080126908,30.26037926,205.08,205.07,0.2]
[1759080127110,68.92037926,205.08,205.07,0.2]
[1759080127500,30.92037926,205.08,205.07,0.2]
[1759080127728,68.92037926,205.08,205.07,0.2]
[1759080128095,30.92037926,205.08,205.07,0.2]
[1759080128595,68.92037926,205.08,205.07,0.2]
[1759080128809,30.92037926,205.08,205.07,0.2]
[1759080129502,68.92037926,205.08,205.07,0.2]
[1759080130191,30.26037926,205.08,205.07,0.91]
[1759080130398,14.43571741,205.12,205.07,0.91]
[1759080130631,42.26011684,205.11,205.08,0.71]
[1759080130912,26.0,205.09,205.08,0.71]
[1759080131111,26.0,205.1,205.09,0.71]
[1759080131321,64.0,205.1,205.09,0.71]
[1759080134121,64.0,205.09,205.08,0.71]
[1759080134305,26.0,205.09,205.08,0.71]
[1759080134505,64.0,205.09,205.08,0.71]
[1759080134908,26.0,205.09,205.08,0.71]
[1759080135108,64.0,205.09,205.08,0.71]
[1759080136207,27.70873013,205.09,205.07,0.2]
[1759080136402,66.40873013,205.09,205.07,0.2]
[1759080136604,1.70873013,205.08,205.07,0.2]
[1759080137004,39.70873013,205.08,205.07,0.2]
[1759080137204,40.40873013,205.08,205.07,0.2]
[1759080137418,2.40873013,205.08,205.07,0.2]
[1759080137614,40.40873013,205.08,205.07,0.2]
[1759080137815,43.69141377,205.08,205.07,0.2]
[1759080138328,45.64831307,205.08,205.07,0.2]
[1759080138510,43.69141377,205.08,205.07,0.2]
[1759080141211,5.69141377,205.08,205.07,0.2]
[1759080141412,13.59559401,205.07,205.03,0.1]
[1759080141730,27.70873013,205.04,205.03,0.1]
[1759080141905,65.70873013,205.04,205.03,0.1]
[1759080142204,90.1319283,205.04,205.03,0.1]
[1759080142818,81.58827765,205.04,205.03,0.1]
[1759080143022,90.1319283,205.04,205.03,0.1]
[1759080143224,96.96640355,205.04,205.03,0.1]
[1759080143809,100.82324708,205.04,205.03,0.1]
[1759080144529,62.82324708,205.04,205.03,0.1]
[1759080144708,100.82324708,205.04,205.03,0.1]
[1759080145825,95.94614993,205.04,205.03,0.1]
[1759080146028,35.09690527,205.04,205.03,0.1]
[1759080146215,3.66610823,205.04,205.03,0.79]
[1759080146526,39.9573781,205.04,205.03,0.79]
[1759080146826,39.70873013,205.04,205.03,0.79]
[1759080147229,3.28541306,205.06,205.03,0.79]
[1759080147405,26.0,205.07,205.03,0.79]
[1759080147406,1.70873013,205.04,205.03,0.1]
[1759080147610,39.70873013,205.04,205.03,0.1]
[1759080147819,1.70873013,205.04,205.03,0.1]
[1759080148016,39.70873013,205.04,205.03,0.79]
[1759080149517,38.0,205.04,205.03,0.79]
[1759080149922,39.70873013,205.04,205.03,0.79]
[1759080152928,1.70873013,205.04,205.03,0.79]
[1759080153317,39.70873013,205.04,205.03,0.79]
[1759080157512,38.0,205.04,205.03,0.79]
[1759080157735,39.70873013,205.04,205.03,0.79]
[1759080160543,27.70873013,205.04,205.03,0.79]
[1759080160842,65.70873013,205.04,205.03,0.1]
[1759080163341,65.70873013,205.04,205.03,0.79]
[1759080163525,65.70873013,205.04,205.03,0.1]
[1759080165846,64.0,205.04,205.03,0.1]
[1759080166030,65.70873013,205.04,205.03,0.1]
[1759080167230,66.41873013,205.04,205.03,0.1]
[1759080167434,69.70859711,205.04,205.03,0.1]
[1759080167649,31.70859711,205.04,205.03,0.1]
[1759080167855,27.70873013,205.04,205.03,0.1]
[1759080168177,65.68873013,205.04,205.03,0.1]
[1759080168329,66.65128008,205.04,205.03,0.1]
[1759080169448,40.65128008,205.04,205.03,0.79]
[1759080170753,37.98,205.04,205.03,0.79]
[1759080172933,2.67128008,205.05,205.03,0.79]
[1759080173139,70.63085481,205.04,205.03,0.1]
[1759080173443,32.65091124,205.04,205.03,0.1]
[1759080173643,29.36128008,205.04,205.03,0.1]
[1759080174034,58.22650525,205.04,205.03,0.1]
[1759080174235,48.91778533,205.04,205.03,0.1]
[1759080174438,22.91778533,205.04,205.03,0.1]
[1759080174656,60.89778533,205.04,205.03,0.1]
[1759080175744,27.79488248,205.04,205.03,0.1]
[1759080176244,65.77488248,205.04,205.03,0.1]
[1759080177044,69.88692143,205.04,205.03,0.1]
[1759080177246,31.90692143,205.04,205.03,0.1]
[1759080177445,69.88692143,205.04,205.03,0.1]
[1759080177756,31.90692143,205.04,205.03,0.1]
[1759080177963,69.88692143,205.04,205.03,0.1]
[1759080178342,64.54436127,205.04,205.03,0.1]
[1759080178543,31.90692143,205.04,205.03,0.1]
[1759080178861,69.88692143,205.04,205.03,0.1]
[1759080179054,31.90692143,205.04,205.03,0.1]
[1759080179252,69.88692143,205.04,205.03,0.1]
[1759080179559,60.89778533,205.04,205.03,0.1]
[1759080179867,26.0,205.01,204.97,0.72]
[1759080180037,2.67128008,204.98,204.97,0.72]
[1759080180470,43.94091124,204.98,204.97,0.72]
[1759080180769,5.96091124,204.98,204.97,0.72]
[1759080180937,40.65128008,204.98,204.97,0.72]
[1759080181144,6.65091124,204.98,204.93,0.92]
[1759080181338,2.67128008,204.95,204.93,0.2]
[1759080181562,2.67128008,204.95,204.94,0.72]
[1759080181863,40.65128008,204.95,204.94,0.72]
[1759080182060,2.67128008,204.95,204.93,0.2]
[1759080182266,40.65128008,204.94,204.93,0.92]
[1759080182460,40.65128008,204.94,204.93,0.2]
[1759080182660,2.67128008,204.94,204.93,0.92]
[1759080182851,40.65128008,204.94,204.93,0.92]
[1759080183348,28.67128008,204.94,204.93,0.92]
[1759080183745,66.65128008,204.94,204.93,0.92]
[1759080184469,2.67128008,204.94,204.93,0.92]
[1759080184664,37.98,204.94,204.93,0.92]
[1759080185356,2.67128008,204.95,204.93,0.92]
[1759080185763,37.98,204.94,204.93,0.92]
[1759080185963,2.67128008,204.95,204.93,0.92]
[1759080186157,37.98,204.94,204.93,0.92]
[1759080186562,3.36128008,204.94,204.93,0.2]
[1759080187054,41.34128008,204.94,204.93,0.2]
[1759080187254,67.34128008,204.94,204.93,0.2]
[1759080187750,32.64370993,204.94,204.93,0.2]
[1759080187950,67.34128008,204.94,204.93,0.2]
[1759080188176,70.62370993,204.94,204.93,0.2]
[1759080188362,32.64370993,204.94,204.93,0.2]
[1759080188671,29.36128008,204.94,204.93,0.2]
[1759080188869,67.34128008,204.94,204.93,0.2]
[1759080189064,70.62370993,204.94,204.93,0.2]
[1759080189262,58.21930394,204.94,204.93,0.2]
[1759080189574,20.23930394,204.94,204.93,0.2]
[1759080189761,54.93687409,204.94,204.93,0.2]
[1759080190071,20.23930394,204.94,204.93,0.2]
[1759080190273,2.67128008,204.94,204.93,0.2]
[1759080190650,40.65128008,204.94,204.93,0.2]
[1759080191063,2.67128008,204.94,204.93,0.2]
[1759080191263,37.98,204.94,204.93,0.2]
[1759080191461,37.98,204.94,204.93,0.88]
[1759080191765,63.98,204.94,204.93,0.88]
[1759080192980,66.65128008,204.94,204.93,0.2]
[1759080193153,28.67128008,204.94,204.93,0.2]
[1759080193775,66.65128008,204.94,204.93,0.2]
[1759080195076,29.35128008,204.94,204.93,0.2]
[1759080195577,28.67128008,204.94,204.93,0.2]
[1759080195881,28.67128008,204.94,204.93,0.88]
[1759080196776,2.67128008,204.94,204.93,0.2]
[1759080196979,40.65128008,204.94,204.93,0.2]
[1759080197369,29.35128008,204.94,204.93,0.2]
[1759080197570,67.33128008,204.94,204.93,0.2]
[1759080198072,28.67128008,204.94,204.93,0.2]
[1759080198256,66.65128008,204.94,204.93,0.2]
[1759080199279,28.67128008,204.94,204.93,0.2]
[1759080199468,66.65128008,204.94,204.93,0.2]
[1759080202084,63.98,204.94,204.93,0.2]
[1759080202283,38.14,204.99,204.93,0.91]
[1759080202482,40.81128008,204.99,204.93,0.91]
[1759080202781,40.81128008,204.99,204.94,0.71]
[1759080202967,63.98,204.98,204.94,0.71]
[1759080203163,37.98,204.98,204.94,0.71]
[1759080203370,37.98,204.97,204.94,0.71]
[1759080203981,26.0,204.98,204.94,0.71]
[1759080204181,37.98,204.97,204.94,0.71]
[1759080204573,26.0,204.98,204.94,0.71]
[1759080204776,38.14,204.99,204.94,3.38128008]
[1759080205083,37.98,204.97,204.95,0.71]
[1759080205784,38.14,204.99,204.95,0.71]
[1759080205986,38.14,204.99,204.95,3.38128008]
[1759080206166,37.98,204.98,204.96,3.38128008]
[1759080206366,38.14,204.99,204.97,0.71]
[1759080206562,37.98,204.98,204.97,0.71]
[1759080206762,37.98,204.98,204.95,2.67128008]
[1759080206975,38.14,204.99,204.96,0.71]
[1759080207179,37.98,204.97,204.96,0.71]
[1759080207580,38.14,204.99,204.96,0.71]
[1759080207766,37.98,204.98,204.96,0.71]
[1759080208865,38.14,204.99,204.96,0.71]
[1759080208866,37.98,204.97,204.96,0.71]
[1759080209065,38.14,204.99,204.96,0.71]
[1759080209367,37.98,204.98,204.96,0.71]
[1759080209976,37.98,204.97,204.96,0.71]
[1759080210493,37.98,204.97,204.94,2.67128008]
[1759080210788,38.14,204.99,204.94,2.67128008]
[1759080210986,37.96,204.98,204.94,2.67128008]
[1759080211181,37.96,204.98,204.95,0.71]
[1759080212384,38.14,204.99,204.95,0.71]
[1759080212575,37.96,204.98,204.95,0.71]
[1759080212771,38.14,204.99,204.95,0.71]
[1759080212974,37.96,204.98,204.95,0.71]
[1759080213377,38.14,204.99,204.95,0.71]
[1759080213589,38.8,204.99,204.95,0.71]
[1759080213889,0.66,204.98,204.93,3.58128008]
[1759080214098,37.96,204.97,204.94,0.71]
[1759080214283,37.96,204.96,204.94,0.71]
[1759080214874,0.66,204.98,204.94,0.71]
[1759080215173,37.96,204.97,204.94,0.71]
[1759080215496,37.96,204.96,204.94,0.71]
[1759080215686,0.66,204.98,204.94,0.71]
[1759080215883,37.96,204.97,204.94,0.71]
[1759080216586,37.96,204.96,204.94,0.71]
[1759080217579,0.66,204.98,204.94,0.71]
[1759080217784,2.67128008,204.96,204.93,0.2]
[1759080218092,0.66,204.95,204.93,0.2]
[1759080218497,0.66,204.94,204.93,0.2]
[1759080218805,3.33128008,204.94,204.93,0.2]
[1759080219094,2.67128008,204.95,204.93,0.2]
[1759080219295,26.66,204.96,204.93,0.2]
[1759080219296,29.33128008,204.96,204.93,0.2]
[1759080219499,37.96,204.95,204.93,0.2]
[1759080220277,41.29128008,204.95,204.93,0.2]
[1759080220600,40.63128008,204.94,204.93,0.2]
[1759080221104,41.29128008,204.94,204.93,0.2]
[1759080221589,3.33128008,204.94,204.93,0.2]
[1759080222100,41.29128008,204.94,204.93,0.2]
[1759080222285,3.33128008,204.94,204.93,0.2]
[1759080222494,41.29128008,204.94,204.93,0.2]
[1759080222684,3.33128008,204.94,204.93,0.2]
[1759080222881,41.29128008,204.94,204.93,0.2]
[1759080224404,3.33128008,204.94,204.93,0.2]
[1759080224617,41.29128008,204.94,204.93,0.2]
[1759080224987,29.33128008,204.94,204.93,0.2]
[1759080225311,85.76635101,204.94,204.93,0.2]
[1759080225526,91.72181532,204.94,204.93,0.2]
[1759080226705,86.8423384,204.94,204.93,0.2]
[1759080227407,53.76181532,204.94,204.93,0.2]
[1759080227605,91.72181532,204.94,204.93,0.2]
[1759080227783,53.76181532,204.94,204.93,0.2]
[1759080228104,91.72181532,204.94,204.93,0.2]
[1759080228408,94.94106501,204.94,204.93,0.2]
[1759080229308,26.0,204.9,204.86,0.1]
[1759080229506,13.59559401,204.93,204.86,0.1]
[1759080229507,1.71236197,204.87,204.86,0.1]
[1759080229690,39.67236197,204.87,204.86,0.1]
[1759080230006,66.33236197,204.87,204.86,0.1]
[1759080230378,28.37236197,204.87,204.86,0.1]
[1759080230578,66.33236197,204.87,204.86,0.1]
[1759080231407,28.37236197,204.87,204.86,0.1]
[1759080231602,66.33236197,204.87,204.86,0.1]
[1759080231988,70.16655687,204.87,204.86,0.1]
[1759080232494,6.20655687,204.87,204.86,0.1]
[1759080232699,44.16655687,204.87,204.86,0.1]
[1759080233402,42.84942684,204.87,204.86,0.1]
[1759080233597,80.80942684,204.87,204.86,0.1]
[1759080233988,75.9282827,204.87,204.86,0.1]
[1759080234300,34.68909186,204.87,204.86,0.1]
[1759080234503,72.64909186,204.87,204.86,0.1]
[1759080236900,77.530236,204.87,204.86,0.1]
[1759080237307,39.570236,204.87,204.86,0.1]
[1759080237501,77.530236,204.87,204.86,0.1]
[1759080237918,82.76461506,204.87,204.86,0.1]
[1759080238116,74.60819557,204.87,204.86,0.1]
[1759080238821,36.64819557,204.87,204.86,0.1]
[1759080239005,74.60819557,204.87,204.86,0.1]
[1759080239995,18.55840666,204.87,204.86,0.79]
[1759080240199,56.51840666,204.87,204.86,0.79]
[1759080240399,56.51840666,204.87,204.86,0.1]
[1759080240697,54.55930295,204.87,204.86,0.1]
[1759080241208,16.59930295,204.87,204.86,0.1]
[1759080241521,42.59930295,204.87,204.86,0.1]
[1759080241827,54.55930295,204.87,204.86,0.1]
[1759080242619,17.27930295,204.87,204.86,0.1]
[1759080242920,55.23930295,204.87,204.86,0.1]
[1759080243606,17.27930295,204.87,204.86,0.1]
[1759080243807,55.23930295,204.87,204.86,0.1]
[1759080244495,68.83489696,204.87,204.86,0.1]
[1759080244816,30.87489696,204.87,204.86,0.1]
[1759080245125,35.7560411,204.87,204.86,0.1]
[1759080245296,73.7160411,204.87,204.86,0.1]
[1759080245736,26.0,204.84,204.82,0.1]
[1759080245923,65.67236197,204.83,204.82,0.1]
[1759080246223,66.35236197,204.83,204.82,0.1]
[1759080246900,48.83740386,204.83,204.82,0.1]
[1759080247099,88.75679547,204.83,204.82,0.1]
[1759080247304,26.0,204.79,204.74,0.69]
[1759080247526,1.71236197,204.75,204.74,0.69]
[1759080247826,39.67236197,204.75,204.72,0.1]
[1759080248198,1.71236197,204.75,204.73,0.69]
[1759080248510,39.67236197,204.74,204.69,0.69]
[1759080248808,1.71236197,204.72,204.69,0.69]
[1759080249020,37.96,204.71,204.69,0.69]
[1759080249420,39.67236197,204.71,204.69,0.69]
[1759080250207,37.96,204.71,204.69,0.69]
[1759080250718,1.71236197,204.72,204.69,0.69]
[1759080251026,1.71236197,204.74,204.7,0.69]
[1759080251232,37.96,204.73,204.66,1.71236197]
[1759080251428,37.96,204.72,204.71,0.7]
[1759080251834,1.71236197,204.73,204.71,0.7]
[1759080252011,37.96,204.72,204.71,0.7]
[1759080252739,26.0,204.76,204.71,0.7]
[1759080252740,1.71236197,204.74,204.71,0.7]
[1759080252912,37.96,204.73,204.71,0.7]
[1759080253333,39.67236197,204.73,204.67,0.7]
[1759080253511,1.71236197,204.72,204.67,0.7]
[1759080253828,1.71236197,204.7,204.67,0.7]
[1759080254018,26.0,204.73,204.6,26.0]
[1759080254019,39.67236197,204.69,204.64,0.7]
[1759080254219,37.96,204.68,204.64,0.7]
[1759080254418,37.96,204.68,204.58,13.79559401]
[1759080254419,37.96,204.68,204.65,0.7]
[1759080254729,1.71236197,204.69,204.65,0.7]
[1759080255033,37.96,204.68,204.65,0.7]
[1759080255533,1.71236197,204.69,204.65,0.7]
[1759080255534,37.96,204.67,204.65,0.7]
[1759080256312,37.96,204.66,204.65,0.7]
[1759080256527,1.71236197,204.7,204.65,0.7]
[1759080256733,37.96,204.69,204.65,0.7]
[1759080257237,26.0,204.72,204.66,0.7]
[1759080257536,37.96,204.71,204.68,1.71236197]
[1759080257738,37.96,204.7,204.68,2.41236197]
[1759080257912,26.0,204.74,204.67,1.71236197]
[1759080258110,37.96,204.73,204.67,1.71236197]
[1759080258641,37.96,204.72,204.68,2.41236197]
[1759080258816,37.96,204.72,204.69,0.7]
[1759080259016,26.0,204.74,204.7,0.7]
[1759080259535,37.96,204.73,204.7,0.7]
[1759080259937,37.96,204.73,204.67,6.59826836]
[1759080260124,37.96,204.73,204.67,7.29826836]
[1759080260719,37.96,204.73,204.68,1.71236197]
[1759080260925,37.96,204.73,204.68,2.43236197]
[1759080261742,267.0,204.77,204.71,1.71236197]
[1759080262041,267.0,204.77,204.69,0.72]
[1759080262042,39.67236197,204.76,204.69,0.72]
[1759080262341,1.71236197,204.75,204.69,0.72]
[1759080262543,39.67236197,204.74,204.66,0.72]
[1759080262839,39.67236197,204.74,204.67,1.71236197]
[1759080263031,37.96,204.73,204.67,1.71236197]
[1759080264735,37.96,204.73,204.69,1.71236197]
[1759080264944,37.96,204.73,204.66,0.72]
[1759080264945,37.96,204.72,204.68,1.71236197]
[1759080265332,37.96,204.72,204.67,4.88582964]
[1759080265333,37.96,204.72,204.67,1.71236197]
[1759080265542,37.96,204.72,204.64,13.59559401]
[1759080265840,39.67236197,204.72,204.65,1.71236197]
[1759080266324,40.36236197,204.72,204.65,1.71236197]
[1759080267322,1.71236197,204.7,204.62,13.59559401]
[1759080267522,40.36236197,204.69,204.62,0.72]
[1759080267730,40.36236197,204.69,204.61,1.71236197]
[1759080267731,1.71236197,204.68,204.61,1.71236197]
[1759080267928,40.36236197,204.69,204.61,1.71236197]
[1759080268145,40.36236197,204.69,204.62,0.72]
[1759080268736,63.96,204.68,204.62,0.72]
[1759080269441,37.96,204.67,204.62,0.72]
[1759080269623,37.96,204.67,204.61,1.71236197]
[1759080269940,37.96,204.67,204.63,0.72]
[1759080270837,37.96,204.67,204.59,18.48321341]
[1759080271043,37.96,204.67,204.62,1.71236197]
[1759080271241,26.0,204.68,204.62,2.43236197]
[1759080271427,37.96,204.67,204.62,2.43236197]
[1759080272944,37.96,204.66,204.62,2.43236197]
[1759080275340,37.96,204.65,204.63,2.43236197]
[1759080275543,37.96,204.64,204.63,2.43236197]
[1759080275842,2.40236197,204.7,204.63,0.72]
[1759080276158,63.96,204.69,204.63,2.43236197]
[1759080276454,0.69,204.68,204.63,2.43236197]
[1759080276632,37.96,204.68,204.63,1.71236197]
[1759080276833,0.69,204.68,204.64,0.72]
[1759080277127,37.96,204.67,204.64,0.72]
[1759080277361,38.65,204.66,204.59,18.48322061]
[1759080277533,38.65,204.66,204.61,2.43236197]
[1759080277854,37.96,204.65,204.61,0.72]
[1759080278046,0.69,204.64,204.61,0.72]
[1759080278237,0.69,204.64,204.6,1.71236197]
[1759080278432,37.96,204.63,204.6,2.43236197]
[1759080278834,37.96,204.63,204.58,26.2]
[1759080279054,0.69,204.62,204.58,0.2]
[1759080279350,1.71236197,204.59,204.58,0.2]
[1759080279539,40.36236197,204.59,204.58,0.2]
[1759080280151,38.65,204.59,204.58,0.2]
[1759080280646,40.36236197,204.59,204.58,0.2]
[1759080281957,0.69,204.59,204.58,0.2]
[1759080282143,4.9585651,204.62,204.58,0.2]
[1759080282348,1.71236197,204.61,204.58,0.2]
[1759080282540,37.96,204.6,204.58,0.2]
[1759080282859,37.96,204.59,204.58,0.2]
[1759080283557,2.55620313,204.62,204.58,0.2]
[1759080283738,2.40236197,204.64,204.58,0.92]
[1759080283936,40.36236197,204.63,204.58,0.92]
[1759080284139,26.0,204.59,204.58,0.2]
[1759080284349,65.67236197,204.59,204.58,0.2]
[1759080284559,64.65,204.59,204.58,0.2]
[1759080284756,40.36236197,204.59,204.58,0.2]
[1759080286139,0.69,204.59,204.58,0.2]
[1759080286340,1.71236197,204.61,204.58,0.2]
[1759080286559,37.96,204.6,204.58,0.2]
[1759080286760,38.65,204.6,204.58,0.2]
[1759080287070,2.40236197,204.59,204.58,0.2]
[1759080287742,40.36236197,204.59,204.58,0.2]
[1759080287942,38.65,204.59,204.58,0.2]
[1759080289062,0.69,204.59,204.58,0.2]
[1759080289240,38.67,204.59,204.58,0.2]
[1759080290160,0.69,204.59,204.58,0.2]
[1759080290465,38.67,204.59,204.58,0.2]
[1759080291561,41.35256181,204.59,204.58,0.2]
[1759080292147,3.37256181,204.59,204.58,0.2]
[1759080292462,41.35256181,204.59,204.58,0.2]
[1759080292762,29.37256181,204.59,204.58,0.2]
[1759080292956,41.35256181,204.59,204.58,0.2]
[1759080293351,38.67,204.59,204.58,0.2]
[1759080293554,41.35256181,204.59,204.58,0.2]
[1759080295793,3.37256181,204.59,204.58,0.2]
[1759080295953,41.35256181,204.59,204.58,0.2]
[1759080298952,41.35256181,204.59,204.5,0.2]
[1759080298953,54.94815582,204.59,204.5,0.2]
[1759080299157,2.68256181,204.52,204.5,0.2]
[1759080299357,37.98,204.51,204.5,0.2]
[1759080299973,0.71,204.53,204.5,0.2]
[1759080300148,37.98,204.52,204.5,0.2]
[1759080300547,2.68256181,204.55,204.51,0.66]
[1759080300780,37.98,204.54,204.51,0.66]
[1759080301073,2.68256181,204.57,204.51,3.34256181]
[1759080301272,2.68256181,204.57,204.52,0.66]
[1759080301476,2.68256181,204.57,204.53,0.66]
[1759080301654,37.98,204.56,204.53,0.66]
[1759080302349,0.71,204.55,204.5,0.86]
[1759080302547,0.71,204.55,204.51,0.66]